Department Family,Entity,Date Paid,Expense Type,Expenses Area,Supplier Name,Transaction Reference,Total,VAT Registration Number,Vlookup
Department of Health,Imperial College Healthcare NHS Trust,10/01/2022,Acton Housing Association,Ichnt Balance Sheet,A2dominion Housing Group Ltd,4662882,"274,379.50 ",Optional requirement only,Housing Deductions
Department of Health,Imperial College Healthcare NHS Trust,10/01/2022,Clinical Managed Service Contr,"Div Of Surg, Cardiov & Cancer",Medtronic Ltd,4615046,"1,945,808.78 ",Optional requirement only,0
Department of Health,Imperial College Healthcare NHS Trust,10/01/2022,Clinical Managed Service Contr,"Div Of Surg, Cardiov & Cancer",Medtronic Ltd,4626365,"1,910,300.16 ",Optional requirement only,0
Department of Health,Imperial College Healthcare NHS Trust,10/01/2022,Clinical Managed Service Contr,Pathology,Abbott Laboratories Ltd,43289,"613,083.68 ",Optional requirement only,0
Department of Health,Imperial College Healthcare NHS Trust,10/01/2022,Clinical Managed Service Contr,Pathology,Abbott Laboratories Ltd,46970,"38,951.65 ",Optional requirement only,0
Department of Health,Imperial College Healthcare NHS Trust,10/01/2022,Clinical Managed Service Contr,Pathology,The Hillingdon Hospital Nhs Foundation Trust,44714,"66,088.91 ",Optional requirement only,0
Department of Health,Imperial College Healthcare NHS Trust,10/01/2022,Clinical Managed Service Contr,Pathology,The Hillingdon Hospital Nhs Foundation Trust,44715,"109,778.61 ",Optional requirement only,0
Department of Health,Imperial College Healthcare NHS Trust,10/01/2022,Clinical Managed Service Contr,Pathology,The Hillingdon Hospital Nhs Foundation Trust,44858,"76,517.18 ",Optional requirement only,0
Department of Health,Imperial College Healthcare NHS Trust,10/01/2022,Computer Maintenance,Information & Comms Technology,Insight,4638792,"30,001.25 ",Optional requirement only,0
Department of Health,Imperial College Healthcare NHS Trust,10/01/2022,Contr Other External,Div Of Women & Clin Support,Alliance Diagnostic Services Ltd,4605002,"57,600.00 ",Optional requirement only,0
Department of Health,Imperial College Healthcare NHS Trust,10/01/2022,Contr Other External,Div Of Women & Clin Support,Alliance Diagnostic Services Ltd,4605003,"57,600.00 ",Optional requirement only,0
Department of Health,Imperial College Healthcare NHS Trust,10/01/2022,Contr Other External,Div Of Women & Clin Support,Alliance Diagnostic Services Ltd,4610170,"57,600.00 ",Optional requirement only,0
Department of Health,Imperial College Healthcare NHS Trust,10/01/2022,Contr Other External,Div Of Women & Clin Support,Alliance Diagnostic Services Ltd,4626095,"57,600.00 ",Optional requirement only,0
Department of Health,Imperial College Healthcare NHS Trust,10/01/2022,Cy Auc -Addns- P & M-Purchased,Capital Summary,Olympus Keymed,4594172,"54,526.42 ",Optional requirement only,0
Department of Health,Imperial College Healthcare NHS Trust,10/01/2022,Cy Auc -Addns- Prof Fee)-Purch,Capital Summary,Aecom,4656676,"272,614.68 ",Optional requirement only,0
Department of Health,Imperial College Healthcare NHS Trust,10/01/2022,Dist Award - Local Cea,Div Of Med & Integrated Care,Imperial College London,4660709,"27,952.35 ",Optional requirement only,0
Department of Health,Imperial College Healthcare NHS Trust,10/01/2022,Dist Award - Nat Cea,Div Of Med & Integrated Care,Imperial College London,4660709,"86,554.56 ",Optional requirement only,0
Department of Health,Imperial College Healthcare NHS Trust,10/01/2022,Dist Award - Nat Cea,Div Of Med & Integrated Care,Imperial College London,4661475,"83,284.83 ",Optional requirement only,0
Department of Health,Imperial College Healthcare NHS Trust,10/01/2022,Dist Award - Nat Cea,"Div Of Surg, Cardiov & Cancer",Imperial College London,4660709,"64,103.35 ",Optional requirement only,0
Department of Health,Imperial College Healthcare NHS Trust,10/01/2022,Dist Award - Nat Cea,"Div Of Surg, Cardiov & Cancer",Imperial College London,4661475,"65,442.98 ",Optional requirement only,0
Department of Health,Imperial College Healthcare NHS Trust,10/01/2022,Heating Oil,Estates Directorate,Certas Energy Uk Ltd,4622363,"38,814.74 ",Optional requirement only,0
Department of Health,Imperial College Healthcare NHS Trust,10/01/2022,Heating Oil,Estates Directorate,Certas Energy Uk Ltd,4622365,"38,812.16 ",Optional requirement only,0
Department of Health,Imperial College Healthcare NHS Trust,10/01/2022,Hosting Service Expenses,Nhs Elect,Cenex Consultancy Services Limited,4661364,"151,200.00 ",Optional requirement only,0
Department of Health,Imperial College Healthcare NHS Trust,10/01/2022,Ic Pay Recharge In: Med,Div Of Med & Integrated Care,Imperial College London,4660709,"170,491.85 ",Optional requirement only,0
Department of Health,Imperial College Healthcare NHS Trust,10/01/2022,Ic Pay Recharge In: Med,Div Of Med & Integrated Care,Imperial College London,4661475,"233,132.41 ",Optional requirement only,0
Department of Health,Imperial College Healthcare NHS Trust,10/01/2022,Ic Pay Recharge In: Med,"Div Of Surg, Cardiov & Cancer",Imperial College London,4660709,"418,568.95 ",Optional requirement only,0
Department of Health,Imperial College Healthcare NHS Trust,10/01/2022,Ic Pay Recharge In: Med,"Div Of Surg, Cardiov & Cancer",Imperial College London,4660711,"57,959.40 ",Optional requirement only,0
Department of Health,Imperial College Healthcare NHS Trust,10/01/2022,Ic Pay Recharge In: Med,"Div Of Surg, Cardiov & Cancer",Imperial College London,4661475,"419,191.01 ",Optional requirement only,0
Department of Health,Imperial College Healthcare NHS Trust,10/01/2022,Ic Pay Recharge In: Med,"Div Of Surg, Cardiov & Cancer",Imperial College London,4661476,"127,131.94 ",Optional requirement only,0
Department of Health,Imperial College Healthcare NHS Trust,10/01/2022,Ic Pay Recharge In: Med,Div Of Women & Clin Support,Imperial College London,4660709,"51,437.59 ",Optional requirement only,0
Department of Health,Imperial College Healthcare NHS Trust,10/01/2022,Ic Pay Recharge In: Med,Div Of Women & Clin Support,Imperial College London,4661475,"48,734.64 ",Optional requirement only,0
Department of Health,Imperial College Healthcare NHS Trust,10/01/2022,Ic Pay Recharge In: Med,Pathology,Imperial College London,4660671,"30,389.72 ",Optional requirement only,0
Department of Health,Imperial College Healthcare NHS Trust,10/01/2022,Ic Pay Recharge In: Med,Pathology,Imperial College London,4660702,"29,307.42 ",Optional requirement only,0
Department of Health,Imperial College Healthcare NHS Trust,10/01/2022,Ic Pay Recharge In: Med,Private Patients Directorate,Imperial College London,4625447,"38,406.79 ",Optional requirement only,0
Department of Health,Imperial College Healthcare NHS Trust,10/01/2022,Ic Pay Rechge In: Admin & Mgmt,"Div Of Surg, Cardiov & Cancer",Imperial College London,4661475,"29,947.26 ",Optional requirement only,0
Department of Health,Imperial College Healthcare NHS Trust,10/01/2022,Internal Recharge: Estates,Pathology,The Hillingdon Hospital Nhs Foundation Trust,47704,"243,667.00 ",Optional requirement only,0
Department of Health,Imperial College Healthcare NHS Trust,10/01/2022,Internal Recharge: Estates,Pathology,The Hillingdon Hospital Nhs Foundation Trust,47705,"243,667.00 ",Optional requirement only,0
Department of Health,Imperial College Healthcare NHS Trust,10/01/2022,Items Pending Investigation,Ichnt Balance Sheet,The Hillingdon Hospital Nhs Foundation Trust,19963,"260,571.55 ",Optional requirement only,0
Department of Health,Imperial College Healthcare NHS Trust,10/01/2022,Items Pending Investigation,Ichnt Balance Sheet,The Hillingdon Hospital Nhs Foundation Trust,48215,"243,667.00 ",Optional requirement only,0
Department of Health,Imperial College Healthcare NHS Trust,10/01/2022,Jac - Stock,Balance Sheet St Marys,Alliance Healthcare (Distribution) Ltd,4660406,"56,130.74 ",Optional requirement only,Stock
Department of Health,Imperial College Healthcare NHS Trust,10/01/2022,Jac - Stock,Balance Sheet St Marys,Alloga Uk Ltd,4660274,"146,448.00 ",Optional requirement only,Stock
Department of Health,Imperial College Healthcare NHS Trust,10/01/2022,Jac - Stock,Balance Sheet St Marys,Alloga Uk Ltd,4660750,"97,632.00 ",Optional requirement only,Stock
Department of Health,Imperial College Healthcare NHS Trust,10/01/2022,Jac - Stock,Balance Sheet St Marys,Bayer Plc,4655517,"37,410.70 ",Optional requirement only,Stock
Department of Health,Imperial College Healthcare NHS Trust,10/01/2022,Jac - Stock,Balance Sheet St Marys,Bayer Plc,4660730,"37,410.70 ",Optional requirement only,Stock
Department of Health,Imperial College Healthcare NHS Trust,10/01/2022,Jac - Stock,Balance Sheet St Marys,Biotest (Uk) Ltd,4645420,"46,960.00 ",Optional requirement only,Stock
Department of Health,Imperial College Healthcare NHS Trust,10/01/2022,Jac - Stock,Balance Sheet St Marys,Biotest (Uk) Ltd,4646813,"57,526.00 ",Optional requirement only,Stock
Department of Health,Imperial College Healthcare NHS Trust,10/01/2022,Jac - Stock,Balance Sheet St Marys,Biotest (Uk) Ltd,4646814,"57,526.00 ",Optional requirement only,Stock
Department of Health,Imperial College Healthcare NHS Trust,10/01/2022,Jac - Stock,Balance Sheet St Marys,Biotest (Uk) Ltd,4655614,"32,872.00 ",Optional requirement only,Stock
Department of Health,Imperial College Healthcare NHS Trust,10/01/2022,Jac - Stock,Balance Sheet St Marys,Biotest (Uk) Ltd,4655615,"96,855.00 ",Optional requirement only,Stock
Department of Health,Imperial College Healthcare NHS Trust,10/01/2022,Jac - Stock,Balance Sheet St Marys,Octapharma Ltd,4657724,"108,360.00 ",Optional requirement only,Stock
Department of Health,Imperial College Healthcare NHS Trust,10/01/2022,Jac - Stock,Balance Sheet St Marys,Qualasept Ltd,4660776,"56,371.68 ",Optional requirement only,Stock
Department of Health,Imperial College Healthcare NHS Trust,10/01/2022,Jac - Stock,Balance Sheet St Marys,Roche Products Ltd,4660379,"57,946.08 ",Optional requirement only,Stock
Department of Health,Imperial College Healthcare NHS Trust,10/01/2022,Laboratory Chemicals/ Reagents,Pathology,Alpha Biotech Ltd,48381,"42,992.56 ",Optional requirement only,0
Department of Health,Imperial College Healthcare NHS Trust,10/01/2022,Other Research Exp - Pay,Rd Surgery & Cancer Division,Imperial College London,4621759,"53,466.83 ",Optional requirement only,0
Department of Health,Imperial College Healthcare NHS Trust,10/01/2022,Other Research Exp - Pay,Rd Surgery & Cancer Division,Imperial College London,4626146,"55,000.00 ",Optional requirement only,0
Department of Health,Imperial College Healthcare NHS Trust,10/01/2022,Other Research Exp - Pay,Rd Surgery & Cancer Division,Imperial College London,4636887,"59,334.29 ",Optional requirement only,0
Department of Health,Imperial College Healthcare NHS Trust,10/01/2022,Other Research Exp - Pay,Rd Surgery & Cancer Division,Imperial College London,4638721,"54,173.52 ",Optional requirement only,0
Department of Health,Imperial College Healthcare NHS Trust,10/01/2022,Rates,Estates Directorate,London Borough Hammersmith & Fulham,4664497,"146,743.00 ",Optional requirement only,0
Department of Health,Imperial College Healthcare NHS Trust,10/01/2022,Rates,Estates Directorate,London Borough Hammersmith & Fulham,4664498,"129,010.00 ",Optional requirement only,0
Department of Health,Imperial College Healthcare NHS Trust,10/01/2022,Rent,Estates Directorate,Metropolitan Thames Valley,4647448,"51,587.29 ",Optional requirement only,0
Department of Health,Imperial College Healthcare NHS Trust,10/01/2022,Services Received - Nhsts,"Div Of Surg, Cardiov & Cancer",Buckinghamshire Healthcare Nhs Trust,4592373,"36,862.95 ",Optional requirement only,0
Department of Health,Imperial College Healthcare NHS Trust,10/01/2022,Services Received - Nhsts,"Div Of Surg, Cardiov & Cancer",Buckinghamshire Healthcare Nhs Trust,4607801,"28,291.08 ",Optional requirement only,0
Department of Health,Imperial College Healthcare NHS Trust,10/01/2022,Taxi & Other Vehicle Hire,Estates Directorate,Dhl Supply Chain  (Former Excel),4629522,"100,564.51 ",Optional requirement only,0
Department of Health,Imperial College Healthcare NHS Trust,10/01/2022,Thames Valley Housing Assoc,Ichnt Balance Sheet,Metropolitan Thames Valley,4662883,"103,669.74 ",Optional requirement only,Housing Deductions
Department of Health,Imperial College Healthcare NHS Trust,10/01/2022,Transcription Services,Information & Comms Technology,Dictate It Ltd,4616115,"46,578.67 ",Optional requirement only,0
Department of Health,Imperial College Healthcare NHS Trust,10/01/2022,Transcription Services,Information & Comms Technology,Dictate It Ltd,4641316,"45,252.00 ",Optional requirement only,0
Department of Health,Imperial College Healthcare NHS Trust,10/01/2022,Transcription Services,Information & Comms Technology,Dictate It Ltd,4641319,"33,802.49 ",Optional requirement only,0
Department of Health,Imperial College Healthcare NHS Trust,10/04/2022,Agency Consultant,Pathology,Reed Specialist Recruitment Ltd,48622,"43,626.17 ",Optional requirement only,0
Department of Health,Imperial College Healthcare NHS Trust,10/04/2022,Agency Nursing: Qualified,Div Of Med & Integrated Care,Reed Specialist Recruitment Ltd,4663796,"251,887.90 ",Optional requirement only,0
Department of Health,Imperial College Healthcare NHS Trust,10/04/2022,Agency Nursing: Qualified,"Div Of Surg, Cardiov & Cancer",Reed Specialist Recruitment Ltd,4663796,"360,990.72 ",Optional requirement only,0
Department of Health,Imperial College Healthcare NHS Trust,10/04/2022,Bldg/Eng Equip Maint/Rep,Estates Directorate,Cbre Managed Services Ltd,4663813,"365,308.84 ",Optional requirement only,0
Department of Health,Imperial College Healthcare NHS Trust,10/04/2022,Clinical Managed Service Contr,"Div Of Surg, Cardiov & Cancer",Blatchford Limited,4659007,"49,430.51 ",Optional requirement only,0
Department of Health,Imperial College Healthcare NHS Trust,10/04/2022,Computer Maintenance,Information & Comms Technology,Cerner Ltd,4614317,"42,803.98 ",Optional requirement only,0
Department of Health,Imperial College Healthcare NHS Trust,10/04/2022,Computer Maintenance,Information & Comms Technology,Cerner Ltd,4638810,"42,803.98 ",Optional requirement only,0
Department of Health,Imperial College Healthcare NHS Trust,10/04/2022,Computer Maintenance,Information & Comms Technology,Cerner Ltd,4638818,"57,071.96 ",Optional requirement only,0
Department of Health,Imperial College Healthcare NHS Trust,10/04/2022,Computer Software/License,Information & Comms Technology,Cerner Ltd,4638811,"322,737.00 ",Optional requirement only,0
Department of Health,Imperial College Healthcare NHS Trust,10/04/2022,Contr Other External,Finance Directorate,Imperial College Innovations Ltd,4649124,"52,800.00 ",Optional requirement only,0
Department of Health,Imperial College Healthcare NHS Trust,10/04/2022,Course Fees,Nursing Directorate,King'S College London,4658018,"49,500.00 ",Optional requirement only,0
Department of Health,Imperial College Healthcare NHS Trust,10/04/2022,Cy Auc -Addns-Bd Purchased,Capital Summary,Cbre Managed Services Ltd,4663813,"684,067.12 ",Optional requirement only,0
Department of Health,Imperial College Healthcare NHS Trust,10/04/2022,Cy Auc -Addns-Bd Purchased,Capital Summary,Cuffe  Plc,4640443,"285,013.70 ",Optional requirement only,0
Department of Health,Imperial College Healthcare NHS Trust,10/04/2022,Cy Auc -Addns-Bd Purchased,Capital Summary,Cuffe  Plc,4663098,"330,243.67 ",Optional requirement only,0
Department of Health,Imperial College Healthcare NHS Trust,10/04/2022,Cy Auc -Addns- It Eqpt-Addns,Capital Summary,Crab Clinical Informatics Ltd,4656555,"396,000.00 ",Optional requirement only,0
Department of Health,Imperial College Healthcare NHS Trust,10/04/2022,Cy Auc -Addns- It Eqpt-Addns,Capital Summary,Nhs North West London Ccg,4652749,"165,000.00 ",Optional requirement only,0
Department of Health,Imperial College Healthcare NHS Trust,10/04/2022,Cy Auc -Addns- P & M-Purchased,Capital Summary,Draeger Medical Uk Ltd,4658020,"48,000.00 ",Optional requirement only,0
Department of Health,Imperial College Healthcare NHS Trust,10/04/2022,Cy Auc -Addns- P & M-Purchased,Capital Summary,Draeger Medical Uk Ltd,4658022,"38,400.00 ",Optional requirement only,0
Department of Health,Imperial College Healthcare NHS Trust,10/04/2022,Cy Auc -Addns- P & M-Purchased,Capital Summary,Fujifilm Uk Ltd,4639481,"64,714.98 ",Optional requirement only,0
Department of Health,Imperial College Healthcare NHS Trust,10/04/2022,Cy Auc -Addns- P & M-Purchased,Capital Summary,Ge Medical Systems Limited,4663408,"358,722.55 ",Optional requirement only,0
Department of Health,Imperial College Healthcare NHS Trust,10/04/2022,Cy Auc -Addns- Prof Fee)-Purch,Capital Summary,Aecom,4664511,"53,054.40 ",Optional requirement only,0
Department of Health,Imperial College Healthcare NHS Trust,10/04/2022,Ext Contract - Patient Travel,Estates Directorate,Falck Uk Ambulance Service Limited,4632295,"1,445,875.07 ",Optional requirement only,0
Department of Health,Imperial College Healthcare NHS Trust,10/04/2022,Jac - Stock,Balance Sheet St Marys,Alliance Healthcare (Distribution) Ltd,4663604,"30,971.46 ",Optional requirement only,Stock
Department of Health,Imperial College Healthcare NHS Trust,10/04/2022,Jac - Stock,Balance Sheet St Marys,Alloga Uk Ltd,4663438,"97,632.00 ",Optional requirement only,Stock
Department of Health,Imperial College Healthcare NHS Trust,10/04/2022,Jac - Stock,Balance Sheet St Marys,Alloga Uk Ltd,4664546,"34,944.00 ",Optional requirement only,Stock
Department of Health,Imperial College Healthcare NHS Trust,10/04/2022,Jac - Stock,Balance Sheet St Marys,Baxter Healthcare Ltd,4664278,"30,391.20 ",Optional requirement only,Stock
Department of Health,Imperial College Healthcare NHS Trust,10/04/2022,Jac - Stock,Balance Sheet St Marys,Bms Pharmaceuticals Ltd (0034),4663467,"34,401.84 ",Optional requirement only,Stock
Department of Health,Imperial College Healthcare NHS Trust,10/04/2022,Jac - Stock,Balance Sheet St Marys,Bpl (Bio-Products Laboratory),4662803,"25,000.00 ",Optional requirement only,Stock
Department of Health,Imperial College Healthcare NHS Trust,10/04/2022,Med & Surg Equip General,"Div Of Surg, Cardiov & Cancer",Healthshare Diagnostics Ltd,4613732,"137,622.25 ",Optional requirement only,0
Department of Health,Imperial College Healthcare NHS Trust,10/04/2022,Med & Surg Equip General,"Div Of Surg, Cardiov & Cancer",Healthshare Diagnostics Ltd,4638687,"165,146.70 ",Optional requirement only,0
Department of Health,Imperial College Healthcare NHS Trust,10/04/2022,Med & Surg Equip General,"Div Of Surg, Cardiov & Cancer",Healthshare Diagnostics Ltd,4662128,"165,146.70 ",Optional requirement only,0
Department of Health,Imperial College Healthcare NHS Trust,10/04/2022,Med & Surg Equip General,"Div Of Surg, Cardiov & Cancer",Healthshare Diagnostics Ltd,4664186,"165,146.70 ",Optional requirement only,0
Department of Health,Imperial College Healthcare NHS Trust,10/04/2022,Med & Surg Equip General,"Div Of Surg, Cardiov & Cancer",Healthshare Diagnostics Ltd,4664187,"165,146.70 ",Optional requirement only,0
Department of Health,Imperial College Healthcare NHS Trust,10/04/2022,Med & Surg Equip General,"Div Of Surg, Cardiov & Cancer",Healthshare Diagnostics Ltd,4664188,"165,146.70 ",Optional requirement only,0
Department of Health,Imperial College Healthcare NHS Trust,10/04/2022,Med & Surg Equip General,"Div Of Surg, Cardiov & Cancer",Societe Generale Equipment Finance Ltd,4630829,"43,753.81 ",Optional requirement only,0
Department of Health,Imperial College Healthcare NHS Trust,10/04/2022,Med & Surg Equip General,"Div Of Surg, Cardiov & Cancer",Vanguard Healthcare Solutions Ltd,4638829,"108,160.80 ",Optional requirement only,0
Department of Health,Imperial College Healthcare NHS Trust,10/04/2022,Med & Surg Equip General,Div Of Women & Clin Support,Lloyds Retail Chemists Ltd,4641496,"3,150,855.00 ",Optional requirement only,0
Department of Health,Imperial College Healthcare NHS Trust,10/04/2022,Med & Surg Equip Leases,Estates Directorate,Arjo Uk Ltd,4661222,"115,657.70 ",Optional requirement only,0
Department of Health,Imperial College Healthcare NHS Trust,10/04/2022,Other Managed Service Contract,Div Of Women & Clin Support,Eleanor Hospital Logistics Ltd,4630898,"50,655.23 ",Optional requirement only,0
Department of Health,Imperial College Healthcare NHS Trust,10/04/2022,Other Managed Service Contract,Div Of Women & Clin Support,Eleanor Hospital Logistics Ltd,4630899,"54,261.92 ",Optional requirement only,0
Department of Health,Imperial College Healthcare NHS Trust,10/04/2022,Other Research Exp - Pay,Rd Medical Directorate,London North West Univ Healthcare Nhs Trust,4661720,"37,125.00 ",Optional requirement only,0
Department of Health,Imperial College Healthcare NHS Trust,10/04/2022,Other Research Exp - Pay,Rd Medical Directorate,Royal Brompton And Harefield Nhs Ft,4663797,"32,800.00 ",Optional requirement only,0
Department of Health,Imperial College Healthcare NHS Trust,10/04/2022,Other Research Exp - Pay,Rd Medical Directorate,West London  Nhs Trust,4661662,"36,855.00 ",Optional requirement only,0
Department of Health,Imperial College Healthcare NHS Trust,10/04/2022,Other Research Exp - Pay,Rd Surgery & Cancer Division,Imperial College London,4656684,"41,974.13 ",Optional requirement only,0
Department of Health,Imperial College Healthcare NHS Trust,10/04/2022,Patients Appl: Purchase,"Div Of Surg, Cardiov & Cancer",Blatchford Limited,4612511,"44,444.71 ",Optional requirement only,0
Department of Health,Imperial College Healthcare NHS Trust,10/04/2022,Prostheses,"Div Of Surg, Cardiov & Cancer",Blatchford Limited,4659088,"30,781.24 ",Optional requirement only,0
Department of Health,Imperial College Healthcare NHS Trust,10/04/2022,Purch Hcare Independent Sector,"Div Of Surg, Cardiov & Cancer",Homelink Healthcare Ltd,4638985,"35,374.00 ",Optional requirement only,0
Department of Health,Imperial College Healthcare NHS Trust,10/04/2022,Rent,Div Of Med & Integrated Care,Nhs Property Services Ltd,4629828,"35,600.01 ",Optional requirement only,0
Department of Health,Imperial College Healthcare NHS Trust,10/06/2022,Agency Nursing: Qualified,Div Of Med & Integrated Care,Reed Specialist Recruitment Ltd,4667868,"93,612.47 ",Optional requirement only,0
Department of Health,Imperial College Healthcare NHS Trust,10/06/2022,Agency Nursing: Qualified,"Div Of Surg, Cardiov & Cancer",Reed Specialist Recruitment Ltd,4667868,"150,739.14 ",Optional requirement only,0
Department of Health,Imperial College Healthcare NHS Trust,10/06/2022,Course Fees,Nursing Directorate,London South Bank University,4664248,"43,690.00 ",Optional requirement only,0
Department of Health,Imperial College Healthcare NHS Trust,10/06/2022,Cy Auc -Addns- P & M-Purchased,Capital Summary,Draeger Medical Uk Ltd,4663172,"460,387.20 ",Optional requirement only,0
Department of Health,Imperial College Healthcare NHS Trust,10/06/2022,Cy Auc -Addns- Prof Fee)-Purch,Capital Summary,Feilden Clegg Bardley Studios Llp,4655956,"64,195.20 ",Optional requirement only,0
Department of Health,Imperial College Healthcare NHS Trust,10/06/2022,Cy Auc -Addns- Prof Fee)-Purch,Capital Summary,Feilden Clegg Bardley Studios Llp,4655957,"42,290.40 ",Optional requirement only,0
Department of Health,Imperial College Healthcare NHS Trust,10/06/2022,Drugs Nhs,Div Of Women & Clin Support,Nhs Business Services Authority,4661591,"28,526.40 ",Optional requirement only,0
Department of Health,Imperial College Healthcare NHS Trust,10/06/2022,Ext Contr Logistics,Div Of Women & Clin Support,Eleanor Hospital Logistics Ltd,4654463,"56,082.84 ",Optional requirement only,0
Department of Health,Imperial College Healthcare NHS Trust,10/06/2022,Ext Contr Logistics,Div Of Women & Clin Support,Eleanor Hospital Logistics Ltd,4656527,"57,415.99 ",Optional requirement only,0
Department of Health,Imperial College Healthcare NHS Trust,10/06/2022,Ext Contr Logistics,Finance Directorate,Eleanor Hospital Logistics Ltd,4595423,"160,605.98 ",Optional requirement only,0
Department of Health,Imperial College Healthcare NHS Trust,10/06/2022,Ext Contr Logistics,Finance Directorate,Eleanor Hospital Logistics Ltd,4611973,"160,605.98 ",Optional requirement only,0
Department of Health,Imperial College Healthcare NHS Trust,10/06/2022,Ext Contr Logistics,Finance Directorate,Eleanor Hospital Logistics Ltd,4633146,"160,605.98 ",Optional requirement only,0
Department of Health,Imperial College Healthcare NHS Trust,10/06/2022,Ext Contr Logistics,Finance Directorate,Eleanor Hospital Logistics Ltd,4638558,"160,605.98 ",Optional requirement only,0
Department of Health,Imperial College Healthcare NHS Trust,10/06/2022,Ext Contr Logistics,Finance Directorate,Eleanor Hospital Logistics Ltd,4641922,"62,711.86 ",Optional requirement only,0
Department of Health,Imperial College Healthcare NHS Trust,10/06/2022,Ext Contr Logistics,Finance Directorate,Eleanor Hospital Logistics Ltd,4641924,"55,718.26 ",Optional requirement only,0
Department of Health,Imperial College Healthcare NHS Trust,10/06/2022,Ext Contr Logistics,Finance Directorate,Eleanor Hospital Logistics Ltd,4641925,"69,647.82 ",Optional requirement only,0
Department of Health,Imperial College Healthcare NHS Trust,10/06/2022,Ext Contr Logistics,Finance Directorate,Eleanor Hospital Logistics Ltd,4664780,"160,605.98 ",Optional requirement only,0
Department of Health,Imperial College Healthcare NHS Trust,10/06/2022,Jac - Stock,Balance Sheet St Marys,Bayer Plc,4666243,"105,844.90 ",Optional requirement only,Stock
Department of Health,Imperial College Healthcare NHS Trust,10/06/2022,Jac - Stock,Balance Sheet St Marys,Bms Pharmaceuticals Ltd (0034),4666364,"30,961.66 ",Optional requirement only,Stock
Department of Health,Imperial College Healthcare NHS Trust,10/06/2022,Jac - Stock,Balance Sheet St Marys,Janssen-Cilag Ltd,4666255,"78,696.72 ",Optional requirement only,Stock
Department of Health,Imperial College Healthcare NHS Trust,10/06/2022,Jac - Stock,Balance Sheet St Marys,Roche Products Ltd,4666410,"296,946.00 ",Optional requirement only,Stock
Department of Health,Imperial College Healthcare NHS Trust,10/06/2022,Med & Prof Fees (Imaging Cons),Ichnt Balance Sheet,Lindo Wing Radiology Llp,4665552,"124,136.69 ",Optional requirement only,0
Department of Health,Imperial College Healthcare NHS Trust,10/06/2022,Med & Surg Equip General,"Div Of Surg, Cardiov & Cancer",Healthshare Diagnostics Ltd,4665379,"165,146.70 ",Optional requirement only,0
Department of Health,Imperial College Healthcare NHS Trust,10/06/2022,Med & Surg Equip Hire,Div Of Women & Clin Support,Ukri-Mrc,4632210,"55,440.00 ",Optional requirement only,0
Department of Health,Imperial College Healthcare NHS Trust,10/06/2022,Other Research Exp - Non-Pay,Rd Medical Directorate,Imperial College London,4661580,"1,125,000.00 ",Optional requirement only,0
Department of Health,Imperial College Healthcare NHS Trust,10/06/2022,Other Transport Costs,Pathology,Dhl Supply Chain  (Former Excel),48731,"36,246.94 ",Optional requirement only,0
Department of Health,Imperial College Healthcare NHS Trust,10/06/2022,Provisions,Estates Directorate,Brakes Bros Ltd,4659631,"162,354.05 ",Optional requirement only,0
Department of Health,Imperial College Healthcare NHS Trust,10/06/2022,Provisions,Estates Directorate,Brakes Bros Ltd,4662895,"183,339.04 ",Optional requirement only,0
Department of Health,Imperial College Healthcare NHS Trust,10/06/2022,Services Received - Nhsts,Div Of Med & Integrated Care,London North West Univ Healthcare Nhs Trust,4638483,"141,018.00 ",Optional requirement only,0
Department of Health,Imperial College Healthcare NHS Trust,10/06/2022,Services Received - Nhsts,"Div Of Surg, Cardiov & Cancer",Buckinghamshire Healthcare Nhs Trust,4584557,"46,168.72 ",Optional requirement only,0
Department of Health,Imperial College Healthcare NHS Trust,10/06/2022,Supplies Issues Recharges,Ichnt Balance Sheet,Supply Chain Coordination Ltd (Sccl) ( 101),4608705,"274,614.88 ",Optional requirement only,Stock
Department of Health,Imperial College Healthcare NHS Trust,10/06/2022,Supplies Issues Recharges,Ichnt Balance Sheet,Supply Chain Coordination Ltd (Sccl) ( 101),4608706,"292,736.16 ",Optional requirement only,Stock
Department of Health,Imperial College Healthcare NHS Trust,10/06/2022,Supplies Issues Recharges,Ichnt Balance Sheet,Supply Chain Coordination Ltd (Sccl) ( 101),4608707,"148,436.11 ",Optional requirement only,Stock
Department of Health,Imperial College Healthcare NHS Trust,10/06/2022,Supplies Issues Recharges,Ichnt Balance Sheet,Supply Chain Coordination Ltd (Sccl) ( 101),4629834,"255,798.53 ",Optional requirement only,Stock
Department of Health,Imperial College Healthcare NHS Trust,10/06/2022,Supplies Issues Recharges,Ichnt Balance Sheet,Supply Chain Coordination Ltd (Sccl) ( 101),4629835,"237,492.73 ",Optional requirement only,Stock
Department of Health,Imperial College Healthcare NHS Trust,10/06/2022,Supplies Issues Recharges,Ichnt Balance Sheet,Supply Chain Coordination Ltd (Sccl) ( 101),4661541,"228,169.07 ",Optional requirement only,Stock
Department of Health,Imperial College Healthcare NHS Trust,10/06/2022,Supplies Issues Recharges,Ichnt Balance Sheet,Supply Chain Coordination Ltd (Sccl) ( 101),4661542,"175,086.67 ",Optional requirement only,Stock
Department of Health,Imperial College Healthcare NHS Trust,10/06/2022,Supplies Issues Recharges,Ichnt Balance Sheet,Supply Chain Coordination Ltd (Sccl) ( 101),4661543,"109,923.41 ",Optional requirement only,Stock
Department of Health,Imperial College Healthcare NHS Trust,10/06/2022,Supplies Issues Recharges,Ichnt Balance Sheet,Supply Chain Coordination Ltd (Sccl) ( 101),4665112,"219,660.56 ",Optional requirement only,Stock
Department of Health,Imperial College Healthcare NHS Trust,10/06/2022,Supplies Issues Recharges,Ichnt Balance Sheet,Supply Chain Coordination Ltd (Sccl) ( 101),4665113,"148,853.97 ",Optional requirement only,Stock
Department of Health,Imperial College Healthcare NHS Trust,10/06/2022,Supplies Issues Recharges,Ichnt Balance Sheet,Supply Chain Coordination Ltd (Sccl) ( 101),4665114,"244,818.31 ",Optional requirement only,Stock
Department of Health,Imperial College Healthcare NHS Trust,10/11/2022,Cleaning Materials,Estates Directorate,Synergy Health Managed Services Ltd,4669435,"53,679.86 ",Optional requirement only,0
Department of Health,Imperial College Healthcare NHS Trust,10/11/2022,Computer Software/License,Information & Comms Technology,3m United Kingdom Plc,4658166,"47,353.11 ",Optional requirement only,0
Department of Health,Imperial College Healthcare NHS Trust,10/11/2022,Electricity,Estates Directorate,Edf Energy Customer Plc,4652064,"303,142.64 ",Optional requirement only,0
Department of Health,Imperial College Healthcare NHS Trust,10/11/2022,Electricity,Estates Directorate,Edf Energy Customer Plc,4669473,"122,813.89 ",Optional requirement only,0
Department of Health,Imperial College Healthcare NHS Trust,10/11/2022,Electricity,Estates Directorate,Edf Energy Customer Plc,4669476,"288,279.36 ",Optional requirement only,0
Department of Health,Imperial College Healthcare NHS Trust,10/11/2022,Electricity,Estates Directorate,Edf Energy Customer Plc,4669479,"54,828.82 ",Optional requirement only,0
Department of Health,Imperial College Healthcare NHS Trust,10/11/2022,Electricity,Estates Directorate,Edf Energy Customer Plc,4669482,"43,366.67 ",Optional requirement only,0
Department of Health,Imperial College Healthcare NHS Trust,10/11/2022,Equip Maint Contracts,Estates Directorate,Cbre Managed Services Ltd,4665290,"36,381.76 ",Optional requirement only,0
Department of Health,Imperial College Healthcare NHS Trust,10/11/2022,Ext Contr Laundry,Estates Directorate,Synergy Health Managed Services Ltd,4669430,"52,441.95 ",Optional requirement only,0
Department of Health,Imperial College Healthcare NHS Trust,10/11/2022,Ext Contr Laundry,Estates Directorate,Synergy Health Managed Services Ltd,4669433,"58,245.24 ",Optional requirement only,0
Department of Health,Imperial College Healthcare NHS Trust,10/11/2022,Ext Contr Laundry,Estates Directorate,Synergy Health Managed Services Ltd,4669434,"49,260.81 ",Optional requirement only,0
Department of Health,Imperial College Healthcare NHS Trust,10/11/2022,Gas,Estates Directorate,Total Gas & Power Ltd,4656984,"101,812.28 ",Optional requirement only,0
Department of Health,Imperial College Healthcare NHS Trust,10/11/2022,Gas,Estates Directorate,Total Gas & Power Ltd,4659125,"41,724.98 ",Optional requirement only,0
Department of Health,Imperial College Healthcare NHS Trust,10/11/2022,Gas,Estates Directorate,Total Gas & Power Ltd,4659127,"54,122.94 ",Optional requirement only,0
Department of Health,Imperial College Healthcare NHS Trust,10/11/2022,Gas,Estates Directorate,Total Gas & Power Ltd,4659184,"150,432.31 ",Optional requirement only,0
Department of Health,Imperial College Healthcare NHS Trust,10/11/2022,Gas,Estates Directorate,Total Gas & Power Ltd,4659185,"63,621.69 ",Optional requirement only,0
Department of Health,Imperial College Healthcare NHS Trust,10/11/2022,Gas,Estates Directorate,Total Gas & Power Ltd,4659187,"97,200.42 ",Optional requirement only,0
Department of Health,Imperial College Healthcare NHS Trust,10/11/2022,Jac - Stock,Balance Sheet St Marys,Alexion Pharma Uk Ltd,4668022,"60,480.00 ",Optional requirement only,Stock
Department of Health,Imperial College Healthcare NHS Trust,10/11/2022,Jac - Stock,Balance Sheet St Marys,Alloga Uk Ltd,4662513,"30,600.00 ",Optional requirement only,Stock
Department of Health,Imperial College Healthcare NHS Trust,10/11/2022,Jac - Stock,Balance Sheet St Marys,Janssen-Cilag Ltd,4662502,"66,853.16 ",Optional requirement only,Stock
Department of Health,Imperial College Healthcare NHS Trust,10/11/2022,Jac - Stock,Balance Sheet St Marys,Janssen-Cilag Ltd,4662503,"31,000.32 ",Optional requirement only,Stock
Department of Health,Imperial College Healthcare NHS Trust,10/11/2022,Jac - Stock,Balance Sheet St Marys,Jazz Pharmaceuticals Uk Limited [Ph],4662555,"86,724.00 ",Optional requirement only,Stock
Department of Health,Imperial College Healthcare NHS Trust,10/11/2022,Jac - Stock,Balance Sheet St Marys,Polar Speed Distribution Ltd,4668932,"53,298.00 ",Optional requirement only,Stock
Department of Health,Imperial College Healthcare NHS Trust,10/11/2022,Med & Surg Equip General,"Div Of Surg, Cardiov & Cancer",Karl Storz Endoscopy (Uk) Ltd,4667837,"67,990.80 ",Optional requirement only,0
Department of Health,Imperial College Healthcare NHS Trust,10/11/2022,Other Research Exp - Non-Pay,Rd Medical Directorate,London Ambulance Service Nhs Trust,4661552,"38,200.00 ",Optional requirement only,0
Department of Health,Imperial College Healthcare NHS Trust,10/11/2022,Other Research Exp - Pay,Rd Medical Directorate,Imperial College London,4621656,"93,950.56 ",Optional requirement only,0
Department of Health,Imperial College Healthcare NHS Trust,10/11/2022,Other Research Exp - Pay,Rd Medical Directorate,Imperial College London,4628755,"102,857.34 ",Optional requirement only,0
Department of Health,Imperial College Healthcare NHS Trust,10/11/2022,Other Research Exp - Pay,Rd Medicine Division,Imperial College London,4631516,"130,415.05 ",Optional requirement only,0
Department of Health,Imperial College Healthcare NHS Trust,10/11/2022,Other Research Exp - Pay,Rd Surgery & Cancer Division,Imperial College London,4636954,"153,617.16 ",Optional requirement only,0
Department of Health,Imperial College Healthcare NHS Trust,10/11/2022,Other Transport Costs,Estates Directorate,Dhl Supply Chain  (Former Excel),4665307,"35,564.06 ",Optional requirement only,0
Department of Health,Imperial College Healthcare NHS Trust,10/11/2022,Other Transport Costs,Pathology,Dhl Supply Chain  (Former Excel),48834,"38,164.01 ",Optional requirement only,0
Department of Health,Imperial College Healthcare NHS Trust,10/11/2022,Purch Hcare Independent Sector,Div Of Med & Integrated Care,London Central & West Unscheduled Care Collab,4670432,"392,444.20 ",Optional requirement only,0
Department of Health,Imperial College Healthcare NHS Trust,10/13/2022,Agency Nursing: Qualified,Div Of Med & Integrated Care,Reed Specialist Recruitment Ltd,4671440,"90,084.39 ",Optional requirement only,0
Department of Health,Imperial College Healthcare NHS Trust,10/13/2022,Agency Nursing: Qualified,"Div Of Surg, Cardiov & Cancer",Reed Specialist Recruitment Ltd,4671440,"188,363.23 ",Optional requirement only,0
Department of Health,Imperial College Healthcare NHS Trust,10/13/2022,Agency Scient & Prof Qualified,Pathology,Reed Specialist Recruitment Ltd,48943,"66,187.35 ",Optional requirement only,0
Department of Health,Imperial College Healthcare NHS Trust,10/13/2022,Contr Refuse & Clin Waste,Estates Directorate,Grundon Waste Management Ltd,4581285,"38,654.21 ",Optional requirement only,0
Department of Health,Imperial College Healthcare NHS Trust,10/13/2022,Contr Refuse & Clin Waste,Estates Directorate,Grundon Waste Management Ltd,4616234,"37,691.60 ",Optional requirement only,0
Department of Health,Imperial College Healthcare NHS Trust,10/13/2022,Contr Refuse & Clin Waste,Estates Directorate,Grundon Waste Management Ltd,4616238,"38,660.24 ",Optional requirement only,0
Department of Health,Imperial College Healthcare NHS Trust,10/13/2022,Cy Auc -Addns-Bd Purchased,Capital Summary,Breathe Energy Ltd,4664219,"902,887.00 ",Optional requirement only,0
Department of Health,Imperial College Healthcare NHS Trust,10/13/2022,Cy Auc -Addns-Bd Purchased,Capital Summary,Breathe Energy Ltd,4664222,"1,123,634.00 ",Optional requirement only,0
Department of Health,Imperial College Healthcare NHS Trust,10/13/2022,Cy Auc -Addns-Bd Purchased,Capital Summary,Cbre Managed Services Ltd,4671465,"1,404,654.22 ",Optional requirement only,0
Department of Health,Imperial College Healthcare NHS Trust,10/13/2022,Cy Auc -Addns-Bd Purchased,Capital Summary,Cuffe  Plc,4670142,"40,413.42 ",Optional requirement only,0
Department of Health,Imperial College Healthcare NHS Trust,10/13/2022,Dialysers,Div Of Med & Integrated Care,Baxter Healthcare Ltd,4612369,"35,961.50 ",Optional requirement only,0
Department of Health,Imperial College Healthcare NHS Trust,10/13/2022,Dialysers,Div Of Med & Integrated Care,Baxter Healthcare Ltd,4612371,"195,972.70 ",Optional requirement only,0
Department of Health,Imperial College Healthcare NHS Trust,10/13/2022,Dialysers,Div Of Med & Integrated Care,Baxter Healthcare Ltd,4632215,"192,008.89 ",Optional requirement only,0
Department of Health,Imperial College Healthcare NHS Trust,10/13/2022,Dialysers,Div Of Med & Integrated Care,Baxter Healthcare Ltd,4632217,"39,450.90 ",Optional requirement only,0
Department of Health,Imperial College Healthcare NHS Trust,10/13/2022,Dialysers,Div Of Med & Integrated Care,Baxter Healthcare Ltd,4632218,"63,367.31 ",Optional requirement only,0
Department of Health,Imperial College Healthcare NHS Trust,10/13/2022,Dialysers,Div Of Med & Integrated Care,Baxter Healthcare Ltd,4641307,"39,970.42 ",Optional requirement only,0
Department of Health,Imperial College Healthcare NHS Trust,10/13/2022,Engineering Contracts,Rd Surgery & Cancer Division,Accenture (Uk) Ltd,4636348,"143,564.77 ",Optional requirement only,0
Department of Health,Imperial College Healthcare NHS Trust,10/13/2022,Engineering Contracts,Rd Surgery & Cancer Division,Accenture (Uk) Ltd,4654922,"131,320.20 ",Optional requirement only,0
Department of Health,Imperial College Healthcare NHS Trust,10/13/2022,Gas,Estates Directorate,Total Gas & Power Ltd,4656982,"40,842.78 ",Optional requirement only,0
Department of Health,Imperial College Healthcare NHS Trust,10/13/2022,Internal Recharge: Estates,Pathology,The Hillingdon Hospital Nhs Foundation Trust,4553059,"1,433,280.00 ",Optional requirement only,0
Department of Health,Imperial College Healthcare NHS Trust,10/13/2022,Isotopes,Div Of Women & Clin Support,Curium Pharma Uk Ltd,4664807,"52,724.40 ",Optional requirement only,0
Department of Health,Imperial College Healthcare NHS Trust,10/13/2022,Items Pending Investigation,Ichnt Balance Sheet,Breathe Energy Ltd,4610636,"902,887.00 ",Optional requirement only,0
Department of Health,Imperial College Healthcare NHS Trust,10/13/2022,Items Pending Investigation,Ichnt Balance Sheet,Breathe Energy Ltd,4610637,"1,123,634.00 ",Optional requirement only,0
Department of Health,Imperial College Healthcare NHS Trust,10/13/2022,Items Pending Investigation,Ichnt Balance Sheet,Breathe Energy Ltd,4640680,"1,604,777.80 ",Optional requirement only,0
Department of Health,Imperial College Healthcare NHS Trust,10/13/2022,Items Pending Investigation,Ichnt Balance Sheet,Breathe Energy Ltd,4640681,"1,458,509.00 ",Optional requirement only,0
Department of Health,Imperial College Healthcare NHS Trust,10/13/2022,Items Pending Investigation,Ichnt Balance Sheet,Breathe Energy Ltd,4640686,"1,604,778.00 ",Optional requirement only,0
Department of Health,Imperial College Healthcare NHS Trust,10/13/2022,Lease Charges,Div Of Med & Integrated Care,Xerox (Uk) Ltd,4614937,"54,238.58 ",Optional requirement only,0
Department of Health,Imperial College Healthcare NHS Trust,10/13/2022,Lease Charges,Div Of Med & Integrated Care,Xerox (Uk) Ltd,4633890,"32,593.14 ",Optional requirement only,0
Department of Health,Imperial College Healthcare NHS Trust,10/13/2022,Lease Charges,Div Of Med & Integrated Care,Xerox (Uk) Ltd,4638774,"33,505.50 ",Optional requirement only,0
Department of Health,Imperial College Healthcare NHS Trust,10/13/2022,Med & Surg Equip Leases,Estates Directorate,Arjo Uk Ltd,4665123,"115,657.70 ",Optional requirement only,0
Department of Health,Imperial College Healthcare NHS Trust,10/13/2022,Other Transport Costs,Pathology,Dhl Supply Chain  (Former Excel),48729,"144,110.84 ",Optional requirement only,0
Department of Health,Imperial College Healthcare NHS Trust,10/13/2022,Other Transport Costs,Pathology,Dhl Supply Chain  (Former Excel),48730,"76,719.26 ",Optional requirement only,0
Department of Health,Imperial College Healthcare NHS Trust,10/13/2022,Services Received - Nhsts,"Div Of Surg, Cardiov & Cancer",Buckinghamshire Healthcare Nhs Trust,4640336,"58,758.35 ",Optional requirement only,0
Department of Health,Imperial College Healthcare NHS Trust,10/13/2022,Services Received - Nhsts,"Div Of Surg, Cardiov & Cancer",Buckinghamshire Healthcare Nhs Trust,4661511,"37,639.40 ",Optional requirement only,0
Department of Health,Imperial College Healthcare NHS Trust,10/13/2022,Services Received - Nhsts,Pathology,Royal National Orthopaedic Hosp,48681,"40,571.00 ",Optional requirement only,0
Department of Health,Imperial College Healthcare NHS Trust,10/13/2022,Services Received - Nhsts,Pathology,Royal National Orthopaedic Hosp,48687,"28,250.00 ",Optional requirement only,0
Department of Health,Imperial College Healthcare NHS Trust,10/13/2022,Srvcsrecd-Other Nhs,"Div Of Surg, Cardiov & Cancer",Buckinghamshire Healthcare Nhs Trust,4629813,"51,938.49 ",Optional requirement only,0
Department of Health,Imperial College Healthcare NHS Trust,10/18/2022,Acton Housing Association,Ichnt Balance Sheet,A2dominion Housing Group Ltd,4672982,"305,076.59 ",Optional requirement only,Housing Deductions
Department of Health,Imperial College Healthcare NHS Trust,10/18/2022,Computer Hardware Purch,Div Of Med & Integrated Care,Cdw Ltd,4561252,"252,196.30 ",Optional requirement only,0
Department of Health,Imperial College Healthcare NHS Trust,10/18/2022,Contr Other External,Estates Directorate,Cbre Managed Services Ltd,4665276,"772,866.90 ",Optional requirement only,0
Department of Health,Imperial College Healthcare NHS Trust,10/18/2022,Contr Other External,Human Resources,Cohort Software Ltd,4640077,"48,548.47 ",Optional requirement only,0
Department of Health,Imperial College Healthcare NHS Trust,10/18/2022,Cy Auc -Addns- P & M-Purchased,Capital Summary,Draeger Medical Uk Ltd,4562442,"78,182.14 ",Optional requirement only,0
Department of Health,Imperial College Healthcare NHS Trust,10/18/2022,Dialysers,Div Of Med & Integrated Care,Baxter Healthcare Ltd,4666505,"64,551.88 ",Optional requirement only,0
Department of Health,Imperial College Healthcare NHS Trust,10/18/2022,Dialysers,Div Of Med & Integrated Care,Baxter Healthcare Ltd,4666506,"186,108.57 ",Optional requirement only,0
Department of Health,Imperial College Healthcare NHS Trust,10/18/2022,Dialysers,Div Of Med & Integrated Care,Nxstage Medical Uk Ltd,4612388,"37,084.17 ",Optional requirement only,0
Department of Health,Imperial College Healthcare NHS Trust,10/18/2022,Dialysers,Div Of Med & Integrated Care,Nxstage Medical Uk Ltd,4632241,"42,865.19 ",Optional requirement only,0
Department of Health,Imperial College Healthcare NHS Trust,10/18/2022,Dialysers,Div Of Med & Integrated Care,Nxstage Medical Uk Ltd,4664683,"45,676.36 ",Optional requirement only,0
Department of Health,Imperial College Healthcare NHS Trust,10/18/2022,Gas,Estates Directorate,Total Gas & Power Ltd,4656981,"45,466.42 ",Optional requirement only,0
Department of Health,Imperial College Healthcare NHS Trust,10/18/2022,Interpreting Services,Div Of Women & Clin Support,Oncall Interpreters Ltd [Cw],4616133,"51,091.10 ",Optional requirement only,0
Department of Health,Imperial College Healthcare NHS Trust,10/18/2022,Interpreting Services,Div Of Women & Clin Support,Oncall Interpreters Ltd [Cw],4643063,"58,757.64 ",Optional requirement only,0
Department of Health,Imperial College Healthcare NHS Trust,10/18/2022,Jac - Stock,Balance Sheet St Marys,Bayer Plc,4672157,"68,890.43 ",Optional requirement only,Stock
Department of Health,Imperial College Healthcare NHS Trust,10/18/2022,Lease Charges,Information & Comms Technology,Xerox (Uk) Ltd,4668846,"30,807.25 ",Optional requirement only,0
Department of Health,Imperial College Healthcare NHS Trust,10/18/2022,Med & Prof Fees (Imaging Cons),Ichnt Balance Sheet,Lindo Wing Radiology Llp,4674227,"151,589.31 ",Optional requirement only,0
Department of Health,Imperial College Healthcare NHS Trust,10/18/2022,Med & Surg Maint Contract,Estates Directorate,Ge Medical Systems Limited,4660726,"793,288.80 ",Optional requirement only,0
Department of Health,Imperial College Healthcare NHS Trust,10/18/2022,Med & Surg Maint Contract,Estates Directorate,Ge Medical Systems Limited,4660883,"784,980.00 ",Optional requirement only,0
Department of Health,Imperial College Healthcare NHS Trust,10/18/2022,Med & Surg Maint Contract,Estates Directorate,Ge Medical Systems Limited,4672470,"821,228.40 ",Optional requirement only,0
Department of Health,Imperial College Healthcare NHS Trust,10/18/2022,Nhs Pay Recharge In: Med,Medical Director Summary,Imperial College Healthcare Charity,4673194,"35,000.00 ",Optional requirement only,0
Department of Health,Imperial College Healthcare NHS Trust,10/18/2022,Nhs Pay Recharge In: Med,Pathology,Imperial College Healthcare Charity,49025,"45,000.00 ",Optional requirement only,0
Department of Health,Imperial College Healthcare NHS Trust,10/18/2022,Office Equipment,Div Of Women & Clin Support,Oncall Interpreters Ltd [Cw],4635374,"54,242.46 ",Optional requirement only,0
Department of Health,Imperial College Healthcare NHS Trust,10/18/2022,Organ Donor Expenses,"Div Of Surg, Cardiov & Cancer",The Anthony Nolan Trust,4616363,"26,535.00 ",Optional requirement only,0
Department of Health,Imperial College Healthcare NHS Trust,10/18/2022,Organ Donor Expenses,"Div Of Surg, Cardiov & Cancer",The Anthony Nolan Trust,4628734,"48,680.00 ",Optional requirement only,0
Department of Health,Imperial College Healthcare NHS Trust,10/18/2022,Organ Donor Expenses,"Div Of Surg, Cardiov & Cancer",The Anthony Nolan Trust,4628736,"48,800.00 ",Optional requirement only,0
Department of Health,Imperial College Healthcare NHS Trust,10/18/2022,Organ Donor Expenses,"Div Of Surg, Cardiov & Cancer",The Anthony Nolan Trust,4628750,"30,540.00 ",Optional requirement only,0
Department of Health,Imperial College Healthcare NHS Trust,10/18/2022,Organ Donor Expenses,"Div Of Surg, Cardiov & Cancer",The Anthony Nolan Trust,4635643,"41,480.00 ",Optional requirement only,0
Department of Health,Imperial College Healthcare NHS Trust,10/18/2022,Other Research Exp - Non-Pay,Rd Medical Directorate,Imperial College London,4668839,"987,024.00 ",Optional requirement only,0
Department of Health,Imperial College Healthcare NHS Trust,10/18/2022,Phone Rental And Calls,Information & Comms Technology,Virgin Media Business  Ltd,4673159,"62,598.70 ",Optional requirement only,0
Department of Health,Imperial College Healthcare NHS Trust,10/18/2022,Postage & Carriage,Estates Directorate,Francotyp-Postalia Uk Limited T/A Teleset,4672692,"25,000.00 ",Optional requirement only,0
Department of Health,Imperial College Healthcare NHS Trust,10/18/2022,Professional Services,Estates Directorate,Knight Security Limited,4672686,"33,280.84 ",Optional requirement only,0
Department of Health,Imperial College Healthcare NHS Trust,10/18/2022,Purch Hcare Independent Sector,"Div Of Surg, Cardiov & Cancer",Homelink Healthcare Ltd,4668867,"26,530.50 ",Optional requirement only,0
Department of Health,Imperial College Healthcare NHS Trust,10/18/2022,Rent,Estates Directorate,Metropolitan Thames Valley,4670165,"51,587.29 ",Optional requirement only,0
Department of Health,Imperial College Healthcare NHS Trust,10/18/2022,Thames Valley Housing Assoc,Ichnt Balance Sheet,Metropolitan Thames Valley,4672983,"103,800.86 ",Optional requirement only,Housing Deductions
Department of Health,Imperial College Healthcare NHS Trust,10/19/2022,Income Tax Paye,Ichnt Balance Sheet,Hmrc Government Employers Account,4671018,"12,166,589.02 ",Optional requirement only,0
Department of Health,Imperial College Healthcare NHS Trust,10/19/2022,Income Tax Paye,Ichnt Balance Sheet,Hmrc Government Employers Account,4671019,"13,449,135.64 ",Optional requirement only,0
Department of Health,Imperial College Healthcare NHS Trust,10/20/2022,Agency Consultant,Pathology,Reed Specialist Recruitment Ltd,49134,"34,513.69 ",Optional requirement only,0
Department of Health,Imperial College Healthcare NHS Trust,10/20/2022,Agency Nursing: Qualified,Div Of Med & Integrated Care,Reed Specialist Recruitment Ltd,4677058,"76,587.43 ",Optional requirement only,0
Department of Health,Imperial College Healthcare NHS Trust,10/20/2022,Agency Nursing: Qualified,"Div Of Surg, Cardiov & Cancer",Reed Specialist Recruitment Ltd,4677058,"144,843.56 ",Optional requirement only,0
Department of Health,Imperial College Healthcare NHS Trust,10/20/2022,Computer Software/License,Div Of Women & Clin Support,Philips Electronics Uk Ltd,4674103,"296,012.10 ",Optional requirement only,0
Department of Health,Imperial College Healthcare NHS Trust,10/20/2022,Consultancy Fees,"Div Of Surg, Cardiov & Cancer",Acumentice Limited,4660667,"189,819.48 ",Optional requirement only,0
Department of Health,Imperial College Healthcare NHS Trust,10/20/2022,Consultancy Fees,"Div Of Surg, Cardiov & Cancer",Acumentice Limited,4660668,"179,350.20 ",Optional requirement only,0
Department of Health,Imperial College Healthcare NHS Trust,10/20/2022,Contr Other External,Div Of Women & Clin Support,Alliance Medical Ltd,4662115,"93,000.00 ",Optional requirement only,0
Department of Health,Imperial College Healthcare NHS Trust,10/20/2022,Contr Other External,Div Of Women & Clin Support,Alliance Medical Ltd,4664488,"90,000.00 ",Optional requirement only,0
Department of Health,Imperial College Healthcare NHS Trust,10/20/2022,Cy Auc -Addns-Bd Purchased,Capital Summary,Cbre Managed Services Ltd,4676817,"75,485.10 ",Optional requirement only,0
Department of Health,Imperial College Healthcare NHS Trust,10/20/2022,Equip Maint Contracts,Pathology,Supply Chain Coordination Ltd (Sccl) ( 201),49061,"65,765.62 ",Optional requirement only,0
Department of Health,Imperial College Healthcare NHS Trust,10/20/2022,Ic Library Expenditure,Medical Director Summary,Imperial College London,4667849,"109,467.52 ",Optional requirement only,0
Department of Health,Imperial College Healthcare NHS Trust,10/20/2022,Med & Surg Equip Repair,Div Of Women & Clin Support,Ge Medical Systems Limited,4669072,"54,861.60 ",Optional requirement only,0
Department of Health,Imperial College Healthcare NHS Trust,10/20/2022,Other Research Exp - Non-Pay,Rd Medical Directorate,Chelsea And  Westminster Hospital Nhs Ft,4670674,"391,584.00 ",Optional requirement only,0
Department of Health,Imperial College Healthcare NHS Trust,10/20/2022,Staff Recruitment Costs,Div Of Med & Integrated Care,University College London Hospitals Nhs Ft,4610417,"26,066.00 ",Optional requirement only,0
Department of Health,Imperial College Healthcare NHS Trust,10/20/2022,Taxi & Other Vehicle Hire,Estates Directorate,Dhl Supply Chain  (Former Excel),4661242,"71,635.97 ",Optional requirement only,0
Department of Health,Imperial College Healthcare NHS Trust,10/25/2022,Bldg/Eng Equip Maint/Rep,Estates Directorate,Cbre Managed Services Ltd,4677798,"279,202.43 ",Optional requirement only,0
Department of Health,Imperial College Healthcare NHS Trust,10/25/2022,Blood Products,Pathology,Nhs Blood And Transplant,4655840,"318,514.62 ",Optional requirement only,0
Department of Health,Imperial College Healthcare NHS Trust,10/25/2022,Car Salary Sacrifice,Ichnt Balance Sheet,Tuskerdirect Ltd,4632331,"83,188.11 ",Optional requirement only,0
Department of Health,Imperial College Healthcare NHS Trust,10/25/2022,Car Salary Sacrifice,Ichnt Balance Sheet,Tuskerdirect Ltd,4638757,"84,244.61 ",Optional requirement only,0
Department of Health,Imperial College Healthcare NHS Trust,10/25/2022,Car Salary Sacrifice,Ichnt Balance Sheet,Tuskerdirect Ltd,4664889,"82,704.35 ",Optional requirement only,0
Department of Health,Imperial College Healthcare NHS Trust,10/25/2022,Clinical Managed Service Contr,Pathology,Chelsea And  Westminster Hospital Nhs Ft,49029,"41,518.88 ",Optional requirement only,0
Department of Health,Imperial College Healthcare NHS Trust,10/25/2022,Cnst Contributions,Central Costs,Nhs Resolution,4678989,"3,527,487.40 ",Optional requirement only,0
Department of Health,Imperial College Healthcare NHS Trust,10/25/2022,Cy Auc -Addns-Bd Purchased,Capital Summary,Cbre Managed Services Ltd,4677798,"582,604.55 ",Optional requirement only,0
Department of Health,Imperial College Healthcare NHS Trust,10/25/2022,Drugs Pbr Excluded,"Div Of Surg, Cardiov & Cancer",Healthcare At Home Ltd,4635373,"45,149.70 ",Optional requirement only,0
Department of Health,Imperial College Healthcare NHS Trust,10/25/2022,Drugs Pbr Excluded,"Div Of Surg, Cardiov & Cancer",Healthcare At Home Ltd,4637256,"30,149.70 ",Optional requirement only,0
Department of Health,Imperial College Healthcare NHS Trust,10/25/2022,Drugs Pbr Excluded,"Div Of Surg, Cardiov & Cancer",Healthcare At Home Ltd,4673230,"26,399.70 ",Optional requirement only,0
Department of Health,Imperial College Healthcare NHS Trust,10/25/2022,Drugs Pbr Excluded,"Div Of Surg, Cardiov & Cancer",Healthcare At Home Ltd,4675959,"26,399.70 ",Optional requirement only,0
Department of Health,Imperial College Healthcare NHS Trust,10/25/2022,Ext Contract - Patient Travel,Estates Directorate,Falck Uk Ambulance Service Limited,4661599,"595,029.60 ",Optional requirement only,0
Department of Health,Imperial College Healthcare NHS Trust,10/25/2022,Insurance Costs,Office Of Chief Executive,Nhs Resolution,4678989,"44,180.30 ",Optional requirement only,0
Department of Health,Imperial College Healthcare NHS Trust,10/25/2022,Items Pending Investigation,Ichnt Balance Sheet,King'S College Hospital Nhs Foundation Trust,4675466,"74,348.00 ",Optional requirement only,0
Department of Health,Imperial College Healthcare NHS Trust,10/25/2022,Laboratory Bottles & Cont,Pathology,Medical Wire & Equipment Co (Bath) Ltd,47595,"38,004.00 ",Optional requirement only,0
Department of Health,Imperial College Healthcare NHS Trust,10/25/2022,Med & Surg Equip General,"Div Of Surg, Cardiov & Cancer",Becton Dickinson Uk Ltd,4598915,"45,192.00 ",Optional requirement only,0
Department of Health,Imperial College Healthcare NHS Trust,10/25/2022,Nhs Pay Recharge In: Other,Rd Medical Directorate,Central & North West London Nhs Ft,4621788,"33,195.60 ",Optional requirement only,0
Department of Health,Imperial College Healthcare NHS Trust,10/25/2022,Other Gen Supplies & Srv,Human Resources,Dr Ossie Stuart Limited,4656742,"96,000.00 ",Optional requirement only,0
Department of Health,Imperial College Healthcare NHS Trust,10/25/2022,Other Research Exp - Non-Pay,Rd Medical Directorate,London Ambulance Service Nhs Trust,4676767,"38,200.00 ",Optional requirement only,0
Department of Health,Imperial College Healthcare NHS Trust,10/25/2022,Other Research Exp - Non-Pay,Rd Medical Directorate,London North West Univ Healthcare Nhs Trust,4671495,"371,952.00 ",Optional requirement only,0
Department of Health,Imperial College Healthcare NHS Trust,10/25/2022,Other Research Exp - Non-Pay,Rd Surgery & Cancer Division,Imperial College London,4555693,"65,951.24 ",Optional requirement only,0
Department of Health,Imperial College Healthcare NHS Trust,10/25/2022,Other Research Exp - Pay,Rd Surgery & Cancer Division,Imperial College London,4672674,"59,502.04 ",Optional requirement only,0
Department of Health,Imperial College Healthcare NHS Trust,10/25/2022,Rates,Estates Directorate,City Of Westminster,4679023,"153,748.00 ",Optional requirement only,0
Department of Health,Imperial College Healthcare NHS Trust,10/25/2022,Rates,Estates Directorate,London Borough Hammersmith & Fulham,4678982,"146,743.00 ",Optional requirement only,0
Department of Health,Imperial College Healthcare NHS Trust,10/25/2022,Rates,Estates Directorate,London Borough Hammersmith & Fulham,4678988,"129,010.00 ",Optional requirement only,0
Department of Health,Imperial College Healthcare NHS Trust,10/25/2022,Srvcsrecd-Other Nhs,"Div Of Surg, Cardiov & Cancer",Imperial College London,4582124,"37,508.19 ",Optional requirement only,0
Department of Health,Imperial College Healthcare NHS Trust,10/25/2022,Staff Recruitment Costs,Human Resources,King'S College Hospital Nhs Foundation Trust,4675426,"27,865.00 ",Optional requirement only,0
Department of Health,Imperial College Healthcare NHS Trust,10/25/2022,Staff Recruitment Costs,Human Resources,King'S College Hospital Nhs Foundation Trust,4675451,"35,610.00 ",Optional requirement only,0
Department of Health,Imperial College Healthcare NHS Trust,10/25/2022,Staff Recruitment Costs,Human Resources,King'S College Hospital Nhs Foundation Trust,4675454,"27,820.00 ",Optional requirement only,0
Department of Health,Imperial College Healthcare NHS Trust,10/25/2022,Staff Recruitment Costs,Human Resources,King'S College Hospital Nhs Foundation Trust,4675480,"78,348.00 ",Optional requirement only,0
Department of Health,Imperial College Healthcare NHS Trust,10/25/2022,Staff Recruitment Costs,Human Resources,King'S College Hospital Nhs Foundation Trust,4675484,"32,830.00 ",Optional requirement only,0
Department of Health,Imperial College Healthcare NHS Trust,10/25/2022,Staff Recruitment Costs,Human Resources,King'S College Hospital Nhs Foundation Trust,4675488,"30,306.00 ",Optional requirement only,0
Department of Health,Imperial College Healthcare NHS Trust,10/25/2022,Staff Recruitment Costs,Human Resources,King'S College Hospital Nhs Foundation Trust,4675493,"32,865.00 ",Optional requirement only,0
Department of Health,Imperial College Healthcare NHS Trust,10/25/2022,Supplies Issues Recharges,Ichnt Balance Sheet,Supply Chain Coordination Ltd (Sccl) ( 101),4670615,"208,974.92 ",Optional requirement only,Stock
Department of Health,Imperial College Healthcare NHS Trust,10/25/2022,Supplies Issues Recharges,Ichnt Balance Sheet,Supply Chain Coordination Ltd (Sccl) ( 101),4670616,"157,801.77 ",Optional requirement only,Stock
Department of Health,Imperial College Healthcare NHS Trust,10/25/2022,Supplies Issues Recharges,Ichnt Balance Sheet,Supply Chain Coordination Ltd (Sccl) ( 101),4670617,"214,496.32 ",Optional requirement only,Stock
Department of Health,Imperial College Healthcare NHS Trust,10/25/2022,Supplies Issues Recharges,Ichnt Balance Sheet,Supply Chain Coordination Ltd (Sccl) ( 101),4675428,"294,170.88 ",Optional requirement only,Stock
Department of Health,Imperial College Healthcare NHS Trust,10/25/2022,Supplies Issues Recharges,Ichnt Balance Sheet,Supply Chain Coordination Ltd (Sccl) ( 101),4675429,"238,523.93 ",Optional requirement only,Stock
Department of Health,Imperial College Healthcare NHS Trust,10/25/2022,Supplies Issues Recharges,Ichnt Balance Sheet,Supply Chain Coordination Ltd (Sccl) ( 101),4675430,"189,398.44 ",Optional requirement only,Stock
,,,,,,Sum:,"87,187,989.26 ",,
,,,,,Count:,299,,,
